bitfinex/quotes_SOLUSD_20240814
["timestamp","ask_amount","ask_price","bid_price","bid_amount"]
[1723632484939,20.0,147.34,147.31,0.8320436]
[1723632486048,30.99,147.33,147.31,0.8320436]
[1723632486252,52.03888,147.32,147.31,0.8320436]
[1723632486552,52.16437,147.32,147.31,0.8320436]
[1723632486743,6.789,147.3,147.23,21.7224]
[1723632486941,37.7791,147.3,147.23,21.7224]
[1723632487150,30.99,147.3,147.23,21.7224]
[1723632487333,25.99,147.3,147.23,21.7224]
[1723632487535,25.99,147.3,147.2,29.3043]
[1723632487849,30.99,147.26,147.17,0.8320436]
[1723632488147,30.99,147.24,147.17,0.8320436]
[1723632488326,6.7917,147.24,147.17,0.8320436]
[1723632488524,37.7817,147.24,147.17,0.8320436]
[1723632488742,30.99,147.24,147.17,0.8320436]
[1723632489130,30.99,147.26,147.17,0.8320436]
[1723632490139,30.99,147.28,147.17,0.8320436]
[1723632490337,20.0,147.27,147.17,0.8320436]
[1723632490730,20.0,147.27,147.18,0.12549]
[1723632490935,6.7893,147.29,147.19,30.99]
[1723632491151,6.7893,147.29,147.18,0.12549]
[1723632491152,20.0,147.28,147.18,0.12549]
[1723632491345,20.0,147.28,147.18,31.11549]
[1723632491544,26.7898,147.28,147.17,0.8320436]
[1723632491860,26.7898,147.28,147.17,31.8220436]
[1723632492235,7.03128812,147.31,147.21,30.99]
[1723632492444,8.113,147.32,147.21,30.99]
[1723632492748,15.23820139,147.36,147.25,30.99]
[1723632492971,28.6939,147.41,147.29,30.99]
[1723632493136,35.4781,147.41,147.29,30.99]
[1723632493334,28.6939,147.41,147.31,0.12549]
[1723632493565,28.6939,147.41,147.31,31.11549]
[1723632493769,37.7727,147.44,147.32,8.4153]
[1723632494061,6.7833,147.42,147.32,8.4153]
[1723632494235,6.7827,147.44,147.32,8.4153]
[1723632494430,35.64288541,147.46,147.33,59.00659]
[1723632494659,28.6077,147.46,147.34,45.37647]
[1723632495137,35.3892,147.46,147.34,45.37647]
[1723632495457,45.5102,147.49,147.37,38.73]
[1723632495661,38.73,147.49,147.37,38.73]
[1723632496453,6.781,147.47,147.37,38.73]
[1723632496970,6.7806,147.48,147.37,38.73]
[1723632497351,26.781,147.47,147.37,0.12549]
[1723632498745,6.7817,147.46,147.37,0.12549]
[1723632498947,6.7817,147.46,147.36,45.25098]
[1723632499167,20.0,147.47,147.35,38.73]
[1723632499375,6.7827,147.44,147.33,58.8811]
[1723632499677,6.782,147.45,147.33,58.8811]
[1723632499971,6.7824,147.44,147.33,58.8811]
[1723632500138,6.7841,147.41,147.33,20.1511]
[1723632500340,6.7847,147.39,147.29,59.6469]
[1723632500545,38.73,147.43,147.29,59.6469]
[1723632500866,65.37647,147.42,147.29,59.6469]
[1723632501071,20.0,147.42,147.29,59.6469]
[1723632501282,20.0,147.42,147.31,38.73]
[1723632501969,26.7834,147.42,147.31,38.73]
[1723632502259,6.784,147.41,147.31,38.73]
[1723632502762,6.784,147.41,147.31,38.85549]
[1723632502938,20.0,147.42,147.31,0.12549]
[1723632503142,20.0,147.42,147.29,59.6469]
[1723632503547,26.7837,147.42,147.29,59.6469]
[1723632503847,6.7841,147.41,147.29,59.6469]
[1723632504875,26.7833,147.42,147.29,59.6469]
[1723632505550,6.7838,147.41,147.31,38.85549]
[1723632505750,26.7834,147.42,147.31,38.85549]
[1723632505967,6.7846,147.4,147.31,38.85549]
[1723632506170,20.0,147.42,147.31,0.12549]
[1723632506986,6.7844,147.4,147.31,0.12549]
[1723632510074,6.7839,147.41,147.31,0.12549]
[1723632510775,6.7842,147.4,147.31,0.12549]
[1723632511181,6.7839,147.41,147.31,0.12549]
[1723632512772,26.7834,147.42,147.31,38.85549]
[1723632513283,20.0,147.42,147.33,83.85549]
[1723632513459,20.0234,147.47,147.35,38.73]
[1723632513660,6.7818,147.46,147.35,38.73]
[1723632513876,26.8045,147.47,147.37,38.73]
[1723632514052,26.8045,147.47,147.37,58.764]
[1723632514253,6.7806,147.48,147.37,58.764]
[1723632514454,6.781,147.47,147.37,58.764]
[1723632515983,0.12549,147.48,147.37,20.034]
[1723632516185,6.7815,147.46,147.37,20.034]
[1723632517379,6.781,147.47,147.37,20.034]
[1723632517669,20.12549,147.48,147.37,20.034]
[1723632517878,6.7815,147.46,147.37,50.994]
[1723632518592,6.7812,147.47,147.37,50.994]
[1723632519087,26.90609,147.48,147.39,30.96]
[1723632519378,26.7806,147.48,147.39,30.96]
[1723632519764,26.7806,147.48,147.39,39.1683]
[1723632520284,6.7811,147.47,147.39,39.1683]
[1723632520977,6.7818,147.46,147.39,8.2083]
[1723632521362,6.7824,147.44,147.39,8.2083]
[1723632521563,6.7829,147.43,147.37,20.034]
[1723632521993,6.7833,147.42,147.37,20.034]
[1723632523294,6.7833,147.42,147.35,8.4022]
[1723632523295,6.7827,147.44,147.35,30.008]
[1723632523465,6.7828,147.43,147.35,30.008]
[1723632527199,37.99948566,147.47,147.35,60.968]
[1723632527372,37.7413,147.47,147.36,45.12549]
[1723632527695,6.7815,147.46,147.36,45.12549]
[1723632528192,6.7819,147.45,147.35,60.968]
[1723632529001,6.7815,147.46,147.35,60.968]
[1723632529375,6.782,147.45,147.35,60.968]
[1723632529805,6.7816,147.46,147.35,60.968]
[1723632530295,50.96,147.45,147.35,30.008]
[1723632530499,20.0,147.45,147.35,60.968]
[1723632531192,30.96,147.47,147.36,45.12549]
[1723632531386,20.0,147.46,147.36,45.0]
[1723632531574,26.7815,147.46,147.36,45.0]
[1723632531780,20.0,147.46,147.36,45.0]
[1723632532577,20.0,147.46,147.37,30.96]
[1723632533902,26.7815,147.46,147.37,30.96]
[1723632534497,20.0,147.46,147.37,30.96]
[1723632534693,6.7816,147.46,147.37,30.96]
[1723632535075,6.7812,147.47,147.37,30.96]
[1723632535271,20.0,147.46,147.37,30.96]
[1723632536382,20.0,147.47,147.37,30.96]
[1723632536699,6.7801,147.49,147.39,30.96]
[1723632536873,6.7801,147.49,147.41,20.1738]
[1723632537072,6.7801,147.49,147.42,1.35438218]
[1723632537302,6.7801,147.49,147.43,1.35441754]
[1723632537488,6.7798,147.5,147.42,1.35441754]
[1723632537685,6.7798,147.5,147.43,1.35432567]
[1723632538002,6.7808,147.48,147.41,20.1738]
[1723632538904,6.7804,147.49,147.41,20.1738]
[1723632539400,6.7797,147.5,147.42,8.6904]
[1723632539702,37.7393,147.51,147.42,8.6904]
[1723632539880,20.0,147.5,147.42,8.6904]
[1723632540592,26.7788,147.52,147.42,8.6904]
[1723632540797,37.7382,147.53,147.43,45.0]
[1723632541006,7.03350746,147.54,147.43,75.96]
[1723632541183,37.7372,147.56,147.44,20.66437]
[1723632541386,6.7774,147.55,147.45,45.12549]
[1723632541801,30.96,147.56,147.45,76.08549]
[1723632542009,6.7765,147.57,147.47,8.0008]
[1723632542389,6.7765,147.57,147.48,45.0]
[1723632542784,8.0061,147.61,147.49,21.2548]
[1723632542990,6.7759,147.59,147.5,45.0]
[1723632543191,6.776,147.58,147.5,45.0]
[1723632543396,6.7764,147.57,147.5,45.0]
[1723632543591,6.7761,147.58,147.5,45.0]
[1723632543902,6.7758,147.59,147.5,45.0]
[1723632544907,6.7761,147.58,147.5,45.0]
[1723632545288,20.0,147.57,147.5,45.0]
[1723632546077,7.03355547,147.62,147.5,45.0]
[1723632546283,6.7749,147.61,147.51,0.25098]
[1723632546684,6.7751,147.6,147.51,0.25098]
[1723632547109,6.7756,147.59,147.51,0.25098]
[1723632547811,6.7765,147.57,147.49,21.2548]
[1723632548199,31.08549,147.6,147.49,21.2548]
[1723632548509,26.90129,147.59,147.49,21.2548]
[1723632549005,6.7759,147.58,147.5,0.12549]
[1723632549202,6.7759,147.58,147.5,45.25098]
[1723632549406,6.7759,147.58,147.49,21.2548]
[1723632550198,20.0,147.57,147.49,21.2548]
[1723632550994,20.0,147.57,147.52,8.6725]
[1723632551193,20.0,147.6,147.52,8.6725]
[1723632551395,30.96,147.61,147.52,8.6725]
[1723632551714,6.7756,147.59,147.52,8.6725]
[1723632551890,20.0,147.6,147.52,8.6725]
[1723632551891,26.7751,147.6,147.52,8.6725]
[1723632552090,20.0,147.6,147.52,8.6725]
[1723632552308,20.0,147.6,147.53,0.12549]
[1723632552507,20.0,147.61,147.53,45.37647]
[1723632552712,10.0,147.63,147.54,20.22579]
[1723632553209,16.7738,147.63,147.54,20.22579]
[1723632553785,10.0,147.63,147.55,45.0]
[1723632554215,20.0,147.62,147.55,45.0]
[1723632556387,20.0,147.62,147.56,0.12549]
[1723632556926,26.7742,147.62,147.56,0.12549]
[1723632557092,26.7742,147.62,147.55,45.0]
[1723632560228,20.0,147.62,147.55,45.0]
[1723632560936,26.7742,147.62,147.55,45.0]
[1723632561633,30.96,147.61,147.54,20.1003]
[1723632561796,30.96,147.59,147.54,20.1003]
[1723632562000,30.96,147.59,147.52,8.6725]
[1723632562001,20.0,147.58,147.52,8.6725]
[1723632562200,6.777,147.56,147.52,8.6725]
[1723632562700,26.7761,147.58,147.52,8.6725]
[1723632562895,20.0,147.58,147.52,8.6725]
[1723632563321,26.7761,147.58,147.52,8.6725]
[1723632563523,6.7765,147.57,147.52,8.6725]
[1723632563906,26.7761,147.58,147.52,8.6725]
[1723632564231,20.0,147.58,147.5,21.6864]
[1723632564433,30.96,147.57,147.5,21.6864]
[1723632565133,6.7769,147.56,147.5,21.6864]
[1723632565739,37.7366,147.57,147.5,21.6864]
[1723632568536,30.96,147.57,147.5,21.6864]
[1723632569636,20.0,147.58,147.5,21.6864]
[1723632569812,26.776,147.58,147.5,21.6864]
[1723632570012,6.7765,147.57,147.5,21.6864]
[1723632570608,26.7761,147.58,147.5,21.6864]
[1723632570938,6.7764,147.57,147.5,21.6864]
[1723632573431,20.0,147.58,147.5,21.6864]
[1723632573624,20.0,147.58,147.51,45.0]
[1723632574334,7.03456625,147.62,147.52,0.25098]
[1723632574532,6.775,147.61,147.52,0.25098]
[1723632574826,6.7751,147.6,147.52,0.25098]
[1723632575033,37.7349,147.61,147.52,0.25098]
[1723632575337,37.7347,147.61,147.52,0.25098]
[1723632575713,7.03360488,147.64,147.52,0.25098]
[1723632575714,37.7338,147.63,147.52,0.25098]
[1723632576008,6.7738,147.63,147.55,21.8371]
[1723632576211,6.7734,147.64,147.55,21.8371]
[1723632576913,6.7736,147.63,147.56,45.0]
[1723632577125,6.7736,147.63,147.55,21.8371]
[1723632577345,6.7736,147.63,147.56,45.0]
[1723632577653,20.0,147.62,147.55,21.8371]
[1723632577807,6.7758,147.59,147.55,21.8371]
[1723632578627,6.7752,147.6,147.55,21.8371]
[1723632578816,20.0,147.59,147.55,21.8371]
[1723632579567,20.0,147.62,147.55,21.8371]
[1723632580049,6.7746,147.61,147.55,21.8371]
[1723632580253,20.0,147.6,147.55,21.8371]
[1723632580760,20.0,147.61,147.55,21.8371]
[1723632581936,20.0,147.62,147.55,21.8371]
[1723632582442,26.7742,147.62,147.55,21.8371]
[1723632583144,6.7751,147.6,147.55,21.8371]
[1723632583632,6.7747,147.61,147.55,21.8371]
[1723632584156,26.7742,147.62,147.55,21.8371]
[1723632585742,20.0,147.62,147.55,21.8371]
[1723632586154,20.0,147.63,147.56,45.25098]
[1723632589654,16.7729,147.65,147.57,0.12549]
[1723632590439,10.0,147.65,147.57,0.12549]
[1723632590645,10.0,147.65,147.58,0.12549]
[1723632590831,10.0,147.65,147.58,0.25098]
[1723632591031,10.0,147.65,147.59,0.25098]
[1723632591837,10.0,147.65,147.58,45.25098]
[1723632594573,10.0,147.65,147.59,0.25098]
[1723632594778,10.0,147.65,147.61,21.1754]
[1723632595073,10.0,147.65,147.62,45.0]
[1723632595475,10.0,147.65,147.61,21.1754]
[1723632596986,40.96,147.65,147.52,20.9264]
[1723632597276,6.7737,147.63,147.53,30.96]
[1723632597660,40.96,147.65,147.53,30.96]
[1723632597857,20.0,147.64,147.53,30.96]
[1723632598382,6.7737,147.63,147.53,30.96]
[1723632598883,26.7733,147.64,147.53,30.96]
[1723632599472,6.7744,147.62,147.53,0.12549]
[1723632599959,6.7738,147.63,147.52,20.9264]
[1723632600160,20.0,147.62,147.52,20.9264]
[1723632600482,20.0,147.62,147.53,30.96]
[1723632600697,20.0,147.63,147.52,20.9264]
[1723632600974,6.7747,147.61,147.52,20.9264]
[1723632601284,30.96,147.6,147.52,20.9264]
[1723632602285,30.96,147.6,147.53,45.0]
[1723632603681,37.7343,147.62,147.53,45.0]
[1723632603862,20.0,147.61,147.53,45.0]
[1723632605870,20.0,147.61,147.54,0.50196]
[1723632606202,20.0,147.62,147.54,0.50196]
[1723632606370,30.96,147.64,147.54,0.50196]
[1723632606371,20.0,147.63,147.54,0.50196]
[1723632606774,20.0,147.64,147.54,0.50196]
[1723632607465,20.0,147.64,147.56,0.12549]
[1723632607671,20.0,147.64,147.56,45.50196]
[1723632608102,10.0,147.65,147.58,21.8655]
[1723632608996,10.0,147.65,147.56,45.0]
[1723632609166,6.7745,147.62,147.53,20.578]
[1723632609367,30.96,147.61,147.54,45.0]
[1723632609568,37.7349,147.61,147.54,45.0]
[1723632609794,30.96,147.61,147.53,20.578]
[1723632609963,6.7761,147.58,147.53,20.578]
[1723632610167,37.7356,147.59,147.53,20.578]
[1723632610393,30.96,147.59,147.53,20.578]
[1723632611101,26.7761,147.58,147.49,20.5908]
[1723632611266,20.0,147.58,147.49,20.5908]
[1723632611776,37.7366,147.57,147.49,20.5908]
[1723632612595,30.96,147.57,147.49,20.5908]
[1723632612975,37.7364,147.57,147.49,20.5908]
[1723632613402,37.7364,147.57,147.5,45.0]
[1723632614099,37.7378,147.55,147.49,20.5908]
[1723632614479,30.96,147.55,147.49,20.5908]
[1723632614679,30.96,147.55,147.48,8.7694]
[1723632616388,58.17679,147.57,147.48,8.7694]
[1723632616590,20.0,147.56,147.49,45.0]
[1723632617706,30.96,147.55,147.49,45.0]
[1723632617902,6.7783,147.53,147.47,0.12549]
[1723632618076,26.7779,147.54,147.47,45.0]
[1723632618587,20.0,147.54,147.47,45.0]
[1723632618790,26.7778,147.54,147.47,45.0]
[1723632619119,26.7778,147.54,147.46,21.9474]
[1723632619120,6.7783,147.53,147.46,21.9474]
[1723632619978,6.7787,147.52,147.46,21.9474]
[1723632620175,6.7787,147.52,147.42,20.065]
[1723632620376,6.7784,147.53,147.43,45.50196]
[1723632620597,20.0,147.52,147.43,76.46196]
[1723632620903,20.0,147.54,147.43,76.46196]
[1723632621881,26.7778,147.54,147.43,76.46196]
[1723632622603,20.0,147.54,147.43,76.46196]
[1723632623480,20.0,147.54,147.45,30.96]
[1723632623801,20.0,147.54,147.46,45.50196]
[1723632624488,20.0,147.55,147.46,45.50196]
[1723632625014,51.2748,147.57,147.46,45.50196]
[1723632625188,58.0515,147.57,147.46,45.50196]
[1723632625594,6.7769,147.56,147.46,45.50196]
[1723632626309,20.0,147.55,147.46,45.50196]
[1723632627396,20.0,147.55,147.47,29.6929]
[1723632627584,20.0,147.56,147.49,0.12549]
[1723632627786,6.7762,147.58,147.49,0.12549]
[1723632627787,20.0,147.57,147.49,0.12549]
[1723632628282,26.7759,147.58,147.49,0.12549]
[1723632628481,46.1271,147.59,147.49,0.12549]
[1723632628677,6.776,147.58,147.49,0.12549]
[1723632628910,59.2317,147.61,147.49,31.08549]
[1723632629091,59.2317,147.61,147.48,45.37647]
[1723632629092,21.4968,147.61,147.51,31.08549]
[1723632629406,6.7742,147.62,147.53,21.86819]
[1723632629714,6.7742,147.62,147.54,45.25098]
[1723632630579,6.7747,147.61,147.54,45.25098]
[1723632630781,8.4377,147.63,147.55,0.12549]
[1723632631122,26.8942,147.65,147.55,31.21098]
[1723632631280,26.8942,147.65,147.57,0.12549]
[1723632631483,20.1214,147.65,147.57,0.12549]
[1723632631825,0.8320436,147.68,147.59,0.12549]
[1723632631989,7.6037436,147.68,147.59,45.37647]
[1723632632608,7.6037436,147.68,147.6,0.12549]
[1723632632889,7.6037436,147.68,147.6,0.37647]
[1723632633288,26.7719,147.67,147.6,0.37647]
[1723632633909,26.2719,147.67,147.6,0.37647]
[1723632634693,19.5,147.67,147.6,0.37647]
[1723632634903,19.5,147.67,147.61,0.12549]
[1723632635237,19.5,147.67,147.61,0.37647]
[1723632635417,0.8320436,147.68,147.61,0.37647]
[1723632635928,0.8320436,147.68,147.61,45.37647]
[1723632636084,20.8320436,147.68,147.61,45.37647]
[1723632636289,20.0,147.67,147.61,45.37647]
[1723632636506,0.8320436,147.68,147.61,45.37647]
[1723632636710,0.8320436,147.68,147.62,0.12549]
[1723632636917,0.8320436,147.68,147.63,0.12549]
[1723632637113,0.8320436,147.68,147.63,0.37647]
[1723632641616,0.8320436,147.68,147.64,0.12549]
[1723632641814,0.8320436,147.68,147.64,0.37647]
[1723632642003,0.8320436,147.68,147.64,0.12549]
[1723632642322,0.8320436,147.68,147.63,0.12549]
[1723632643030,0.8320436,147.68,147.63,0.25098]
[1723632643507,0.8320436,147.68,147.64,0.25098]
[1723632645938,0.8320436,147.68,147.65,0.25098]
[1723632646306,0.8320436,147.68,147.65,45.25098]
[1723632647422,0.8320436,147.68,147.67,0.12549]
[1723632647623,0.8320436,147.68,147.67,0.25098]
[1723632647820,0.8320436,147.68,147.67,0.37647]
[1723632648736,0.8320436,147.68,147.67,1.85528167]
[1723632648920,0.8320436,147.68,147.67,45.50196]
[1723632652509,0.8320436,147.68,147.64,21.6653]
[1723632652734,0.8320436,147.68,147.65,0.12549]
[1723632652939,0.8320436,147.68,147.65,45.25098]
[1723632656015,0.8320436,147.68,147.65,45.12549]
[1723632656338,0.8320436,147.68,147.65,45.0]
[1723632656549,0.8320436,147.68,147.62,8.605]
[1723632656739,0.8320436,147.68,147.6,20.6292]
[1723632656923,31.7920436,147.68,147.6,20.6292]
[1723632657122,38.5635436,147.68,147.6,20.6292]
[1723632658028,38.5635436,147.68,147.58,8.7101]
[1723632658232,50.9512,147.66,147.56,21.6389]
[1723632659616,50.9512,147.66,147.57,0.12549]
[1723632660313,50.9512,147.66,147.58,0.12549]
[1723632660514,50.9512,147.66,147.58,0.25098]
[1723632660742,50.9512,147.66,147.59,0.12549]
[1723632661048,30.96,147.64,147.58,0.12549]
[1723632661213,19.9912,147.66,147.58,0.37647]
[1723632661409,19.9912,147.66,147.59,0.25098]
[1723632663611,19.9912,147.66,147.6,0.37647]
[1723632663814,19.9912,147.66,147.61,0.12549]
[1723632664653,19.9912,147.66,147.58,0.12549]
[1723632664823,19.9912,147.66,147.58,0.50196]
[1723632665149,26.7635,147.66,147.58,0.50196]
[1723632665444,50.9512,147.66,147.58,0.50196]
[1723632665650,20.0,147.67,147.58,31.46196]
[1723632665815,20.8320436,147.68,147.6,0.12549]
[1723632666016,20.8320436,147.68,147.6,0.50196]
[1723632666315,27.6035436,147.68,147.6,0.50196]
[1723632666517,20.8320436,147.68,147.6,0.50196]
[1723632666823,0.8320436,147.68,147.6,31.46196]
[1723632667122,0.8320436,147.68,147.62,0.12549]
[1723632667333,0.8320436,147.68,147.62,31.46196]
[1723632667528,0.8320436,147.68,147.64,0.12549]
[1723632667748,0.8320436,147.68,147.64,0.37647]
[1723632668050,0.8320436,147.68,147.64,31.46196]
[1723632668227,0.8320436,147.68,147.66,0.12549]
[1723632668540,0.8320436,147.68,147.66,0.50196]
[1723632670128,0.8320436,147.68,147.66,0.37647]
[1723632671546,0.8320436,147.68,147.66,0.12549]
[1723632671716,0.8320436,147.68,147.65,45.0]
[1723632672135,0.8320436,147.68,147.66,0.12549]
[1723632672331,0.8320436,147.68,147.66,0.25098]
[1723632674642,0.8320436,147.68,147.67,0.12549]
[1723632674826,0.8320436,147.68,147.67,0.50196]
[1723632676141,0.8320436,147.68,147.67,45.50196]
[1723632683158,0.8320436,147.68,147.62,53.83245735]
[1723632683330,0.8320436,147.68,147.62,51.096]
[1723632684657,0.8320436,147.68,147.65,0.12549]
[1723632684825,0.8320436,147.68,147.65,45.50196]
[1723632691357,0.8320436,147.68,147.61,0.10006097]
[1723632691748,6.7718,147.67,147.61,0.10006097]
[1723632691978,6.7741,147.62,147.61,0.10006097]
[1723632692135,37.7338,147.63,147.61,0.10006097]
[1723632692340,30.96,147.63,147.61,0.10006097]
[1723632693066,37.734,147.63,147.61,0.10006097]
[1723632693372,61.4529,147.65,147.61,0.10006097]
[1723632693664,20.0,147.64,147.61,0.10006097]
[1723632695360,26.7735,147.64,147.61,0.10006097]
[1723632695958,20.0,147.64,147.61,0.10006097]
[1723632696341,30.4929,147.65,147.61,0.10006097]
[1723632701577,37.2657,147.65,147.61,0.10006097]
[1723632702475,30.4929,147.65,147.61,0.10006097]
[1723632702875,68.2257,147.65,147.61,0.10006097]
[1723632703263,37.7337,147.63,147.61,0.10006097]
[1723632703581,30.96,147.63,147.61,0.10006097]
[1723632704573,6.7741,147.62,147.61,0.10006097]
[1723632704784,37.7337,147.63,147.61,0.10006097]
[1723632705281,30.96,147.63,147.61,0.10006097]
[1723632710587,68.2257,147.65,147.61,0.10006097]
[1723632710887,20.0,147.64,147.61,0.10006097]
[1723632714063,26.7733,147.64,147.61,0.10006097]
[1723632714264,37.7336,147.63,147.61,0.10006097]
[1723632714477,30.96,147.63,147.61,0.10006097]
[1723632715895,6.7741,147.62,147.61,0.10006097]
[1723632716791,20.0,147.64,147.61,0.10006097]
[1723632716974,57.7333,147.64,147.61,0.10006097]
[1723632717998,28.6884,147.61,147.48,1.17751281]
[1723632718196,8.8047,147.52,147.44,27.141384]
[1723632718493,6.7778,147.54,147.41,33.69242449]
[1723632718695,6.7778,147.54,147.41,30.96]
[1723632718696,6.7779,147.54,147.41,30.96]
[1723632718895,26.7786,147.53,147.41,30.96]
[1723632719271,50.96,147.53,147.4,27.03215293]
[1723632719596,30.96,147.51,147.39,55.54403268]
[1723632720080,37.7392,147.51,147.39,55.54403268]
[1723632720282,6.7797,147.5,147.39,55.54403268]
[1723632720471,30.96,147.51,147.39,21.8688]
[1723632720472,21.174,147.51,147.39,21.8688]
[1723632720668,37.7411,147.47,147.38,8.504]
[1723632720870,37.7415,147.46,147.38,8.504]
[1723632721091,8.736,147.49,147.35,21.7341]
[1723632721092,6.7826,147.44,147.35,21.7341]
[1723632721277,6.7838,147.41,147.31,19.9034]
[1723632721491,30.96,147.41,147.31,19.9034]
[1723632722202,51.1878,147.43,147.31,19.9034]
[1723632722383,57.9707,147.43,147.31,19.9034]
[1723632722698,51.1878,147.43,147.31,50.8634]
[1723632723480,30.96,147.43,147.31,50.8634]
[1723632724007,30.96,147.44,147.32,0.37647]
[1723632724208,30.96,147.42,147.31,19.9034]
[1723632724396,30.96,147.4,147.31,19.9034]
[1723632725482,6.7843,147.4,147.31,19.9034]
[1723632725792,6.7847,147.39,147.3,8.5356]
[1723632725995,30.96,147.38,147.3,8.5356]
[1723632727405,30.96,147.38,147.31,0.12549]
[1723632727587,30.96,147.4,147.31,0.12549]
[1723632727783,8.6657,147.41,147.31,0.37647]
[1723632727978,20.0,147.4,147.31,0.37647]
[1723632728201,20.0,147.4,147.32,0.12549]
[1723632728799,57.7444,147.4,147.32,0.12549]
[1723632728995,57.7444,147.4,147.31,45.37647]
[1723632729500,50.96,147.4,147.32,0.12549]
[1723632729697,20.0,147.4,147.32,0.12549]
[1723632730883,26.7845,147.4,147.32,0.12549]
[1723632731377,26.7845,147.4,147.31,45.37647]
[1723632732010,6.7851,147.39,147.31,45.37647]
[1723632732317,50.96,147.4,147.31,45.37647]
[1723632732318,57.7443,147.4,147.31,45.37647]
[1723632732911,30.96,147.38,147.31,45.12549]
[1723632733916,37.7453,147.38,147.31,45.0]
[1723632734096,6.7856,147.37,147.27,21.9671]
[1723632734305,37.7452,147.38,147.27,21.9671]
[1723632734612,37.7462,147.36,147.26,8.8059]
[1723632734913,6.7865,147.35,147.26,8.8059]
[1723632735082,30.96,147.34,147.26,8.8059]
[1723632735283,37.7471,147.34,147.23,28.4479]
[1723632735597,20.0,147.33,147.23,28.4479]
[1723632736103,20.0,147.33,147.24,30.96]
[1723632736295,20.0,147.34,147.24,30.96]
[1723632736900,20.0,147.34,147.25,0.12549]
[1723632737413,20.0,147.34,147.25,0.25098]
[1723632737598,20.0,147.34,147.26,0.25098]
[1723632738300,20.0,147.35,147.26,0.25098]
[1723632738612,26.7866,147.35,147.26,0.25098]
[1723632739004,30.96,147.34,147.26,0.25098]
[1723632739620,20.0,147.35,147.27,0.12549]
[1723632739927,6.7867,147.35,147.26,0.25098]
[1723632740217,6.7876,147.33,147.24,30.96]
[1723632740388,6.7876,147.33,147.23,28.4479]
[1723632740788,65.7259,147.34,147.23,28.4479]
[1723632741015,27.9789,147.34,147.24,30.96]
[1723632741609,27.9789,147.34,147.25,0.12549]
[1723632741919,34.7659,147.34,147.25,0.25098]
[1723632742104,34.7659,147.34,147.25,45.12549]
[1723632742696,6.7874,147.33,147.25,45.12549]
[1723632743036,27.9789,147.34,147.25,45.12549]
[1723632743314,58.9389,147.34,147.25,0.12549]
[1723632743526,6.7876,147.33,147.25,0.12549]
[1723632743826,27.03199,147.32,147.2,30.96]
[1723632744025,20.24369,147.32,147.2,30.96]
[1723632744227,26.9063,147.32,147.2,30.96]
[1723632744515,20.1182,147.32,147.2,30.96]
[1723632745119,20.1182,147.32,147.22,30.96]
[1723632745324,20.1182,147.32,147.23,45.50196]
[1723632745517,20.1182,147.32,147.23,45.37647]
[1723632751022,26.9062,147.32,147.23,45.37647]
[1723632751525,20.1182,147.32,147.23,45.37647]
[1723632752022,20.1182,147.32,147.25,0.12549]
[1723632752201,20.1182,147.32,147.25,45.50196]